[Event "NJSK 2021 Jeugd C"]
[Site "Almelo, Netherlands"]
[Date "2021.08.04"]
[Round "5.4"]
[White "Verheij, Dana"]
[Black "Zecha, Oscar"]
[Result "0-1"]
[TimeControl "90min + 30sec/move"]
[WhiteElo "1931"]
[BlackElo "1650"]

1. e4 {[%clk 01:30:56]} {[%emt 00:00:03]} c5 {[%clk 01:30:57]} {[%emt
00:00:04]} 2. c3 {[%emt 00:00:08]} d5 {[%clk 01:31:24]} 3. exd5 {[%clk
01:31:44]} {[%emt 00:00:06]} Qxd5 {[%clk 01:31:50]} {[%emt 00:00:04]} 4. d4
{[%clk 01:31:57]} {[%emt 00:00:18]} Nc6 {[%clk 01:32:16]} {[%emt 00:00:03]} 5.
Nf3 {[%clk 01:32:08]} {[%emt 00:00:19]} Bg4 {[%clk 01:32:40]} {[%emt 00:00:07]}
6. dxc5 {[%clk 01:32:23]} {[%emt 00:00:15]} Qxd1+ {[%clk 01:33:02]} {[%emt
00:00:07]} 7. Kxd1 {[%clk 01:32:49]} {[%emt 00:00:04]} e6 {[%clk 01:33:21]}
{[%emt 00:00:11]} 8. b4 {[%clk 01:32:38]} {[%emt 00:00:42]} a5 {[%clk
01:33:44]} {[%emt 00:00:07]} 9. a3 {[%clk 01:33:00]} {[%emt 00:00:07]} axb4
{[%clk 01:32:46]} {[%emt 00:01:28]} 10. cxb4 {[%clk 01:26:11]} {[%emt
00:07:20]} Nxb4 {[%clk 01:31:09]} {[%emt 00:02:06]} 11. Bb5+ {[%clk 01:23:18]}
{[%emt 00:03:22]} Nc6 {[%clk 01:31:11]} {[%emt 00:00:29]} 12. Be3 {[%clk
01:21:02]} {[%emt 00:02:47]} O-O-O+ {[%clk 01:26:35]} {[%emt 00:05:05]} 13.
Nbd2 {[%clk 01:20:03]} {[%emt 00:01:27]} Nf6 {[%clk 01:21:53]} {[%emt
00:05:15]} 14. Ke2 {[%clk 01:10:16]} {[%emt 00:10:15]} Nd5 {[%clk 01:14:40]}
{[%emt 00:07:44]} 15. Rhc1 {[%clk 01:04:13]} {[%emt 00:06:32]} g6 {[%clk
01:11:31]} {[%emt 00:03:41]} 16. Bxc6 {[%clk 00:56:48]} {[%emt 00:07:54]} bxc6
{[%clk 01:11:51]} {[%emt 00:00:11]} 17. Bd4 {[%clk 00:55:57]} {[%emt 00:01:18]}
Nf4+ {[%clk 01:07:05]} {[%emt 00:05:18]} 18. Kf1 {[%clk 00:55:25]} {[%emt
00:01:01]} Rg8 {[%clk 01:05:38]} {[%emt 00:01:58]} 19. Rab1 {[%clk 00:50:37]}
{[%emt 00:05:16]} Bf5 {[%clk 00:59:28]} {[%emt 00:06:42]} 20. Rb6 {[%clk
00:41:06]} {[%emt 00:10:00]} Bd3+ {[%clk 00:58:37]} {[%emt 00:01:22]} 21. Ke1
{[%clk 00:41:29]} {[%emt 00:00:07]} Ne2 {[%clk 00:58:37]} {[%emt 00:00:30]} 22.
Rxc6+ {[%clk 00:40:44]} {[%emt 00:01:14]} Kb7 {[%clk 00:58:18]} {[%emt
00:00:50]} 23. Rb6+ {[%clk 00:40:43]} {[%emt 00:00:31]} Ka8 {[%clk 00:57:49]}
{[%emt 00:00:59]} 24. Bf6 {[%clk 00:19:38]} {[%emt 00:21:36]} Nxc1 {[%clk
00:55:39]} {[%emt 00:02:39]} 25. Bxd8 {[%clk 00:19:56]} {[%emt 00:00:12]} Bxc5
{[%clk 00:55:22]} {[%emt 00:00:47]} 26. Rc6 {[%clk 00:19:16]} {[%emt 00:01:07]}
Bb5 {[%clk 00:55:38]} {[%emt 00:00:17]} 27. Rc8+ {[%clk 00:17:44]} {[%emt
00:02:03]} Kb7 {[%clk 00:55:50]} {[%emt 00:00:18]} 28. Rc7+ {[%clk 00:17:42]}
{[%emt 00:00:32]} Kb8 {[%clk 00:56:01]} {[%emt 00:00:19]} 29. Ne5 {[%clk
00:16:46]} {[%emt 00:01:25]} Bxa3 {[%clk 00:49:45]} {[%emt 00:06:47]} 30. Nd7+
{[%clk 00:12:00]} {[%emt 00:05:16]} Bxd7 {[%clk 00:50:00]} {[%emt 00:00:13]} 31.
Rxd7 {[%clk 00:12:25]} {[%emt 00:00:05]} Kc8 {[%clk 00:49:59]} {[%emt
00:00:32]} 32. Ra7 {[%clk 00:12:22]} {[%emt 00:00:26]} Bc5 {[%clk 00:50:13]}
{[%emt 00:00:20]} 33. Ra5 {[%clk 00:10:58]} {[%emt 00:01:57]} Nd3+ {[%clk
00:46:34]} {[%emt 00:04:08]} 34. Ke2 {[%clk 00:11:17]} {[%emt 00:00:11]} Rxd8
{[%clk 00:46:54]} {[%emt 00:00:09]} 35. Ra8+ {[%clk 00:11:14]} {[%emt
00:00:34]} Kc7 {[%clk 00:47:14]} {[%emt 00:00:08]} 36. Rxd8 {[%clk 00:11:40]}
{[%emt 00:00:06]} Kxd8 {[%clk 00:47:36]} {[%emt 00:00:08]} 37. Kxd3 {[%clk
00:12:01]} {[%emt 00:00:08]} Bxf2 {[%clk 00:47:47]} {[%emt 00:00:20]} 38. Ne4
{[%clk 00:11:05]} {[%emt 00:01:26]} Bh4 {[%clk 00:47:47]} {[%emt 00:00:29]} 39.
Kd4 {[%clk 00:10:57]} {[%emt 00:00:39]} f5 {[%clk 00:46:12]} {[%emt 00:02:06]}
40. Nd2 {[%clk 00:08:59]} {[%emt 00:02:24]} Ke7 {[%clk 00:46:10]} {[%emt
00:00:34]} 41. Nf3 {[%clk 00:08:35]} {[%emt 00:00:54]} Bf2+ {[%clk 00:46:02]}
{[%emt 00:00:39]} 42. Ke5 {[%clk 00:08:40]} {[%emt 00:00:23]} Bc5 {[%clk
00:45:31]} {[%emt 00:01:03]} 43. h3 {[%clk 00:07:44]} {[%emt 00:01:25]} Bd6+
{[%clk 00:45:48]} {[%emt 00:00:14]} 44. Kd4 {[%clk 00:08:10]} {[%emt 00:00:04]}
Kf6 {[%clk 00:46:02]} {[%emt 00:00:16]} 45. Ke3 {[%clk 00:07:57]} {[%emt
00:00:41]} e5 {[%clk 00:45:59]} {[%emt 00:00:35]} 46. g4 {[%clk 00:07:40]}
{[%emt 00:00:47]} h6 {[%clk 00:45:02]} {[%emt 00:01:27]} 47. gxf5 {[%clk
00:07:15]} {[%emt 00:00:55]} gxf5 {[%clk 00:45:16]} {[%emt 00:00:16]} 48. Ne1
{[%clk 00:05:52]} {[%emt 00:01:52]} e4 {[%clk 00:44:22]} {[%emt 00:01:24]} 49.
Ng2 {[%clk 00:05:52]} {[%emt 00:00:30]} Ke5 {[%clk 00:44:22]} {[%emt 00:00:31]}
50. Ne1 {[%clk 00:05:33]} {[%emt 00:00:48]} f4+ {[%clk 00:44:41]} {[%emt
00:00:11]} 51. Kf2 {[%clk 00:05:34]} {[%emt 00:00:27]} Bc5+ {[%clk 00:44:56]}
{[%emt 00:00:18]} 52. Kg2 {[%clk 00:05:31]} {[%emt 00:00:31]} Bb4 {[%clk
00:44:38]} {[%emt 00:00:49]} 53. Nf3+ {[%clk 00:04:28]} {[%emt 00:01:33]} exf3+
{[%clk 00:44:09]} {[%emt 00:00:59]} 54. Kxf3 {[%clk 00:04:56]} {[%emt
00:00:02]} Kf5 {[%clk 00:44:25]} {[%emt 00:00:15]} 55. h4 {[%clk 00:05:16]}
{[%emt 00:00:09]} Bd2 {[%clk 00:44:41]} {[%emt 00:00:13]} 56. h5 {[%clk
00:05:11]} {[%emt 00:00:36]} Bb4 {[%clk 00:45:05]} {[%emt 00:00:07]} 57. Kg2
{[%clk 00:05:25]} {[%emt 00:00:16]} Kg4 {[%clk 00:45:30]} {[%emt 00:00:05]} 58.
Kh1 {[%clk 00:05:41]} {[%emt 00:00:13]} Kxh5 {[%clk 00:45:52]} {[%emt
00:00:22]} 0-1

[Event "NJSK 2021 Jeugd C"]
[Site "Almelo, Netherlands"]
[Date "2021.08.04"]
[Round "5.5"]
[White "Madularea, David"]
[Black "Kurt, Sascha"]
[Result "0-1"]
[TimeControl "90min + 30sec/move"]
[WhiteElo "1656"]
[BlackElo "1650"]

1. c4 {[%clk 01:30:58]} {[%emt 00:00:02]} Nf6 {[%clk 01:30:57]} {[%emt
00:00:04]} 2. d4 {[%clk 01:31:20]} {[%emt 00:00:08]} g6 {[%clk 01:31:21]}
{[%emt 00:00:06]} 3. g3 {[%clk 01:31:40]} {[%emt 00:00:11]} Bg7 {[%clk
01:31:43]} {[%emt 00:00:07]} 4. Bg2 {[%clk 01:32:01]} {[%emt 00:00:08]} O-O
{[%clk 01:32:03]} {[%emt 00:00:10]} 5. Nf3 {[%clk 01:32:19]} {[%emt 00:00:12]}
d6 {[%clk 01:32:23]} {[%emt 00:00:11]} 6. Nc3 {[%clk 01:32:34]} {[%emt
00:00:15]} Nc6 {[%clk 01:32:27]} {[%emt 00:00:26]} 7. d5 {[%clk 01:31:57]}
{[%emt 00:01:07]} Na5 {[%clk 01:32:15]} {[%emt 00:00:42]} 8. b3 {[%clk
01:31:55]} {[%emt 00:00:33]} a6 {[%clk 01:32:06]} {[%emt 00:00:39]} 9. Bb2
{[%clk 01:29:47]} {[%emt 00:02:36]} Ne4 {[%clk 01:30:54]} {[%emt 00:01:43]} 10.
Qc1 {[%emt 00:01:24]} Nxc3 {[%clk 01:30:40]} 11. Bxc3 {[%clk 01:29:55]} {[%emt
00:00:11]} Bxc3+ {[%clk 01:30:55]} {[%emt 00:00:15]} 12. Qxc3 {[%clk 01:30:17]}
{[%emt 00:00:08]} b6 {[%clk 01:31:16]} {[%emt 00:00:11]} 13. h4 {[%clk
01:29:11]} {[%emt 00:01:34]} h5 {[%clk 01:30:45]} {[%emt 00:01:02]} 14. O-O
{[%clk 01:28:44]} {[%emt 00:00:56]} Bg4 {[%clk 01:30:22]} {[%emt 00:00:54]} 15.
e4 {[%clk 01:22:07]} {[%emt 00:07:06]} Bxf3 {[%clk 01:29:58]} {[%emt 00:00:55]}
16. Bxf3 {[%clk 01:22:10]} {[%emt 00:00:26]} Nb7 {[%clk 01:27:59]} {[%emt
00:02:29]} 17. b4 {[%clk 01:21:55]} {[%emt 00:00:45]} a5 {[%clk 01:27:24]}
{[%emt 00:01:06]} 18. a3 {[%clk 01:21:48]} {[%emt 00:00:37]} Qd7 {[%clk
01:27:11]} {[%emt 00:00:43]} 19. Qe3 {[%clk 01:06:39]} {[%emt 00:15:38]} Kh7
{[%clk 01:25:22]} {[%emt 00:02:19]} 20. Kh2 {[%clk 00:54:40]} {[%emt 00:12:30]}
Ra7 {[%clk 01:18:58]} {[%emt 00:06:54]} 21. Qc3 {[%clk 00:51:59]} {[%emt
00:03:09]} Rfa8 {[%clk 01:17:50]} {[%emt 00:01:39]} 22. Bg2 {[%clk 00:50:40]}
{[%emt 00:01:49]} Qe8 {[%clk 01:14:35]} {[%emt 00:03:46]} 23. f4 {[%clk
00:41:22]} {[%emt 00:09:48]} Qh8 {[%clk 01:10:47]} {[%emt 00:04:17]} 24. e5
{[%clk 00:33:17]} {[%emt 00:08:35]} f5 {[%clk 01:10:10]} {[%emt 00:01:07]} 25.
Rfc1 {[%clk 00:24:02]} {[%emt 00:09:45]} Qg7 {[%clk 01:05:40]} {[%emt
00:05:01]} 26. Qe1 {[%clk 00:21:51]} {[%emt 00:02:41]} Kg8 {[%clk 01:01:39]}
{[%emt 00:04:31]} 27. Bf1 {[%clk 00:19:45]} {[%emt 00:02:35]} Kf8 {[%clk
00:59:38]} {[%emt 00:02:31]} 28. Bd3 {[%clk 00:19:28]} {[%emt 00:00:47]} Qf7
{[%clk 00:57:33]} {[%emt 00:02:35]} 29. Bc2 {[%clk 00:18:44]} {[%emt 00:01:15]}
Qg7 {[%clk 00:56:43]} {[%emt 00:01:20]} 30. Bb3 {[%clk 00:17:30]} {[%emt
00:01:40]} Ra6 {[%clk 00:55:20]} {[%emt 00:01:57]} 31. Ba4 {[%clk 00:14:14]}
{[%emt 00:03:45]} R6a7 {[%clk 00:53:28]} {[%emt 00:02:22]} 32. Bc6 {[%clk
00:14:24]} {[%emt 00:00:20]} Rb8 {[%clk 00:52:35]} {[%emt 00:01:24]} 33. Rc2
{[%clk 00:10:00]} {[%emt 00:04:52]} Nd8 {[%clk 00:51:42]} {[%emt 00:01:24]} 34.
Bd7 {[%clk 00:09:30]} {[%emt 00:01:00]} Nf7 {[%clk 00:50:59]} {[%emt 00:01:13]}
35. Re2 {[%clk 00:09:31]} {[%emt 00:00:29]} Rd8 {[%clk 00:50:30]} {[%emt
00:00:59]} 36. Bc6 {[%clk 00:09:18]} {[%emt 00:00:43]} Nh6 {[%clk 00:48:40]}
{[%emt 00:02:20]} 37. b5 {[%clk 00:06:55]} {[%emt 00:02:53]} Ng4+ {[%clk
00:47:42]} {[%emt 00:01:29]} 38. Kg1 {[%clk 00:07:20]} {[%emt 00:00:05]} Qh8
{[%clk 00:46:24]} {[%emt 00:01:48]} 39. Rd1 {[%clk 00:07:20]} {[%emt 00:00:30]}
Qg7 {[%clk 00:46:34]} {[%emt 00:00:19]} 40. a4 {[%clk 00:06:29]} {[%emt
00:01:21]} Qh8 {[%clk 00:46:45]} {[%emt 00:00:20]} 41. exd6 {[%clk 00:03:47]}
{[%emt 00:03:12]} cxd6 {[%clk 00:47:04]} {[%emt 00:00:10]} 42. c5 {[%clk
00:04:05]} {[%emt 00:00:12]} dxc5 {[%clk 00:41:54]} {[%emt 00:05:40]} 43. d6
{[%clk 00:04:20]} {[%emt 00:00:15]} exd6 {[%clk 00:42:06]} {[%emt 00:00:18]} 44.
Rxd6 {[%clk 00:04:00]} {[%emt 00:00:50]} Rxd6 {[%clk 00:41:37]} {[%emt
00:01:00]} 45. Re8+ {[%clk 00:04:13]} {[%emt 00:00:17]} Kg7 {[%clk 00:41:59]}
{[%emt 00:00:08]} 46. Rxh8 {[%clk 00:04:23]} {[%emt 00:00:19]} Kxh8 {[%clk
00:42:19]} {[%emt 00:00:11]} 47. Qe8+ {[%clk 00:04:22]} {[%emt 00:00:30]} Kg7
{[%clk 00:42:31]} {[%emt 00:00:19]} 48. Kf1 {[%clk 00:03:25]} {[%emt 00:01:27]}
Rf7 {[%clk 00:41:51]} {[%emt 00:01:10]} 49. Qb8 {[%clk 00:02:05]} {[%emt
00:01:50]} Rd1+ {[%clk 00:40:46]} {[%emt 00:01:35]} 50. Ke2 {[%clk 00:02:27]}
{[%emt 00:00:07]} Rd4 {[%clk 00:40:21]} {[%emt 00:00:55]} 51. Bf3 {[%clk
00:01:31]} {[%emt 00:01:26]} Re7+ {[%clk 00:39:12]} {[%emt 00:01:40]} 52. Kf1
{[%clk 00:01:54]} {[%emt 00:00:06]} Nh2+ {[%clk 00:39:00]} {[%emt 00:00:42]} 53.
Kg2 {[%clk 00:02:11]} {[%emt 00:00:13]} Rd2+ {[%clk 00:39:14]} {[%emt
00:00:16]} 54. Kh3 {[%clk 00:02:07]} {[%emt 00:00:34]} Nxf3 {[%clk 00:39:34]}
{[%emt 00:00:11]} 55. g4 {[%clk 00:02:31]} {[%emt 00:00:06]} Ng1+ {[%clk
00:39:51]} {[%emt 00:00:12]} 0-1

[Event "NJSK 2021 Jeugd C"]
[Site "Almelo, Netherlands"]
[Date "2021.08.04"]
[Round "5.6"]
[White "Dekker, Thiemen"]
[Black "Ekker, Joshua"]
[Result "1-0"]
[TimeControl "90min + 30sec/move"]
[WhiteElo "1806"]
[BlackElo "1695"]

1. e4 {[%clk 01:30:57]} {[%emt 00:00:03]} e5 {[%clk 01:30:56]} {[%emt
00:00:04]} 2. Nf3 {[%clk 01:31:20]} {[%emt 00:00:08]} Nc6 {[%clk 01:31:21]}
{[%emt 00:00:06]} 3. Bc4 {[%clk 01:31:43]} {[%emt 00:00:06]} Nf6 {[%clk
01:31:45]} {[%emt 00:00:06]} 4. d3 {[%clk 01:32:03]} {[%emt 00:00:12]} Bc5
{[%clk 01:32:06]} {[%emt 00:00:08]} 5. c3 {[%clk 01:32:28]} {[%emt 00:00:05]}
d6 {[%clk 01:32:23]} {[%emt 00:00:13]} 6. a4 {[%clk 01:32:56]} {[%emt
00:00:02]} a5 {[%clk 01:32:16]} {[%emt 00:00:36]} 7. Bg5 {[%clk 01:33:09]}
{[%emt 00:00:17]} h6 {[%clk 01:31:34]} {[%emt 00:01:13]} 8. Bh4 {[%clk
01:33:35]} {[%emt 00:00:04]} O-O {[%clk 01:31:06]} {[%emt 00:00:59]} 9. Nbd2
{[%clk 01:33:48]} {[%emt 00:00:17]} Bg4 {[%clk 01:30:24]} {[%emt 00:01:11]} 10.
h3 {[%clk 01:33:02]} {[%emt 00:01:15]} Bh5 {[%clk 01:30:24]} {[%emt 00:00:30]}
11. g4 {[%clk 01:32:32]} {[%emt 00:01:02]} Bg6 {[%clk 01:30:35]} {[%emt
00:00:17]} 12. g5 {[%clk 01:32:09]} {[%emt 00:00:54]} hxg5 {[%clk 01:29:28]}
{[%emt 00:01:37]} 13. Bxg5 {[%clk 01:30:34]} {[%emt 00:02:05]} Bh5 {[%clk
01:19:40]} {[%emt 00:10:17]} 14. Qb3 {[%clk 01:29:04]} {[%emt 00:02:01]} Rb8
{[%clk 01:17:05]} {[%emt 00:03:04]} 15. Bh4 {[%clk 01:27:31]} {[%emt 00:02:04]}
Qe7 {[%clk 01:02:32]} {[%emt 00:15:03]} 16. O-O-O {[%clk 01:26:14]} {[%emt
00:01:47]} g6 {[%clk 00:52:35]} {[%emt 00:10:27]} 17. Rdg1 {[%clk 01:24:49]}
{[%emt 00:01:56]} Kg7 {[%clk 00:51:24]} {[%emt 00:01:40]} 18. Rg5 {[%clk
01:12:31]} {[%emt 00:12:49]} Qd7 {[%clk 00:45:51]} {[%emt 00:06:03]} 19. Rhg1
{[%clk 01:09:34]} {[%emt 00:03:26]} Ne7 {[%clk 00:34:49]} {[%emt 00:11:33]} 20.
d4 {[%clk 01:01:34]} {[%emt 00:08:30]} Bxf3 {[%clk 00:29:11]} {[%emt 00:06:07]}
21. Nxf3 {[%clk 01:00:16]} {[%emt 00:01:49]} Bb6 {[%clk 00:26:22]} {[%emt
00:03:19]} 22. dxe5 {[%clk 00:58:41]} {[%emt 00:02:04]} dxe5 {[%clk 00:23:29]}
{[%emt 00:03:22]} 23. Nxe5 {[%clk 00:55:48]} {[%emt 00:03:25]} Qxh3 {[%clk
00:18:34]} {[%emt 00:05:24]} 24. Bg3 {[%clk 00:40:47]} {[%emt 00:15:31]} Nxe4
{[%clk 00:15:29]} {[%emt 00:03:35]} 25. Nxf7 {[%clk 00:36:17]} {[%emt
00:05:01]} Bxf2 {[%clk 00:07:50]} {[%emt 00:08:08]} 26. Bxf2 {[%clk 00:29:10]}
{[%emt 00:07:38]} Rxf7 {[%clk 00:04:28]} {[%emt 00:03:51]} 27. Bd4+ {[%clk
00:27:15]} {[%emt 00:02:26]} Kf8 {[%clk 00:03:19]} {[%emt 00:01:38]} 28. Bxf7
{[%clk 00:22:32]} {[%emt 00:05:14]} Nxg5 {[%clk 00:03:08]} {[%emt 00:00:41]} 29.
Bc4 {[%clk 00:21:57]} {[%emt 00:01:05]} Ne4 {[%clk 00:01:49]} {[%emt 00:01:48]}
30. Rf1+ {[%clk 00:17:51]} {[%emt 00:04:37]} Nf5 {[%clk 00:01:21]} {[%emt
00:00:57]} 31. Qa3+ {[%clk 00:14:28]} {[%emt 00:03:54]} Ke8 {[%clk 00:00:56]}
{[%emt 00:00:54]} 32. Re1 {[%clk 00:13:58]} {[%emt 00:01:01]} Qh6+ {[%clk
00:00:49]} {[%emt 00:00:37]} 33. Kb1 {[%clk 00:13:51]} {[%emt 00:00:38]} Nfd6
{[%clk 00:01:07]} {[%emt 00:00:11]} 34. Bb5+ {[%clk 00:11:38]} {[%emt
00:02:43]} Kd8 {[%clk 00:01:12]} {[%emt 00:00:24]} 35. Qa2 {[%clk 00:06:00]}
{[%emt 00:06:09]} Qh7 {[%clk 00:01:06]} {[%emt 00:00:36]} 36. Qe6 {[%clk
00:04:13]} {[%emt 00:02:17]} g5 {[%clk 00:01:02]} {[%emt 00:00:33]} 37. Ka1
{[%clk 00:03:13]} {[%emt 00:01:30]} b6 {[%clk 00:00:44]} {[%emt 00:00:49]} 38.
Rxe4 {[%clk 00:01:43]} {[%emt 00:02:00]} Qh1+ {[%clk 00:00:55]} {[%emt
00:00:19]} 39. Re1 {[%clk 00:01:50]} {[%emt 00:00:23]} 1-0

[Event "NJSK 2021 Jeugd C"]
[Site "Almelo, Netherlands"]
[Date "2021.08.04"]
[Round "5.7"]
[White "Ponomarev, Ivan"]
[Black "Aravindhan, Achyuth"]
[Result "1-0"]
[TimeControl "90min + 30sec/move"]
[WhiteElo "1723"]
[BlackElo "1031"]

1. e4 {[%clk 01:30:58]} {[%emt 00:00:02]} c5 {[%clk 01:30:57]} {[%emt
00:00:03]} 2. Nf3 {[%clk 01:31:24]} {[%emt 00:00:04]} d6 {[%clk 01:31:23]}
{[%emt 00:00:04]} 3. Bb5+ {[%clk 01:31:50]} {[%emt 00:00:04]} Bd7 {[%clk
01:31:46]} {[%emt 00:00:07]} 4. Bxd7+ {[%clk 01:32:12]} {[%emt 00:00:09]} Qxd7
{[%clk 01:32:10]} {[%emt 00:00:05]} 5. O-O {[%clk 01:32:03]} {[%emt 00:00:38]}
Nc6 {[%clk 01:31:08]} {[%emt 00:01:33]} 6. c3 {[%clk 01:30:37]} {[%emt
00:01:56]} Nf6 {[%clk 01:30:27]} {[%emt 00:01:11]} 7. Qe2 {[%clk 01:29:35]}
{[%emt 00:01:31]} g6 {[%clk 01:25:41]} {[%emt 00:05:17]} 8. d4 {[%clk
01:28:09]} {[%emt 00:01:56]} cxd4 {[%clk 01:21:42]} {[%emt 00:04:29]} 9. cxd4
{[%clk 01:28:32]} {[%emt 00:00:07]} Bg7 {[%clk 01:20:47]} {[%emt 00:01:25]} 10.
e5 {[%clk 01:24:46]} {[%emt 00:04:16]} dxe5 {[%clk 01:18:15]} {[%emt 00:03:02]}
11. dxe5 {[%clk 01:25:07]} {[%emt 00:00:08]} Ng4 {[%clk 01:16:16]} {[%emt
00:02:29]} 12. Bf4 {[%clk 01:22:09]} {[%emt 00:03:29]} O-O {[%clk 01:13:29]}
{[%emt 00:03:17]} 13. h3 {[%clk 01:17:34]} {[%emt 00:05:05]} Nh6 {[%clk
01:12:42]} {[%emt 00:01:16]} 14. Rd1 {[%clk 01:12:30]} {[%emt 00:05:34]} Qc7
{[%clk 01:06:21]} {[%emt 00:06:52]} 15. Nc3 {[%clk 01:09:13]} {[%emt 00:03:46]}
b6 {[%clk 00:54:21]} {[%emt 00:12:29]} 16. Rac1 {[%clk 01:07:54]} {[%emt
00:01:51]} Qb7 {[%clk 00:50:08]} {[%emt 00:04:43]} 17. Nd5 {[%clk 01:02:06]}
{[%emt 00:06:18]} Rac8 {[%clk 00:37:17]} {[%emt 00:13:21]} 18. Qe4 {[%clk
00:51:31]} {[%emt 00:11:02]} Rfe8 {[%clk 00:28:48]} {[%emt 00:09:01]} 19. Rc2
{[%clk 00:40:32]} {[%emt 00:11:27]} f5 {[%clk 00:19:52]} {[%emt 00:09:26]} 20.
exf6 {[%clk 00:36:18]} {[%emt 00:04:46]} exf6 {[%clk 00:19:32]} {[%emt
00:00:48]} 21. Qc4 {[%clk 00:34:47]} {[%emt 00:02:01]} Nf7 {[%clk 00:18:37]}
{[%emt 00:01:25]} 22. Rdc1 {[%clk 00:30:53]} {[%emt 00:03:46]} Ne7 {[%clk
00:16:10]} {[%emt 00:03:36]} 23. Nxe7+ {[%clk 00:30:46]} {[%emt 00:00:38]} Qxe7
{[%clk 00:14:18]} {[%emt 00:02:21]} 24. Qxc8 {[%clk 00:30:59]} {[%emt
00:00:17]} Rxc8 {[%clk 00:14:33]} {[%emt 00:00:16]} 25. Rxc8+ {[%clk 00:31:27]}
{[%emt 00:00:02]} Bf8 {[%clk 00:14:40]} {[%emt 00:00:21]} 26. Re1 {[%clk
00:30:43]} {[%emt 00:01:13]} Qb4 {[%clk 00:13:20]} {[%emt 00:01:52]} 27. Ree8
{[%clk 00:30:46]} {[%emt 00:00:27]} Qxf4 {[%clk 00:13:29]} {[%emt 00:00:21]} 28.
Rxf8+ {[%clk 00:30:59]} {[%emt 00:00:18]} Kg7 {[%clk 00:13:52]} {[%emt
00:00:07]} 29. Rg8+ {[%clk 00:31:10]} {[%emt 00:00:19]} Kh6 {[%clk 00:14:09]}
{[%emt 00:00:13]} 30. b3 {[%clk 00:28:53]} {[%emt 00:02:46]} Ng5 {[%clk
00:13:12]} {[%emt 00:01:26]} 31. Nh2 {[%clk 00:27:53]} {[%emt 00:01:32]} f5
{[%clk 00:12:40]} {[%emt 00:01:02]} 32. Rc4 {[%clk 00:20:48]} {[%emt 00:07:35]}
Ne4 {[%clk 00:12:14]} {[%emt 00:00:55]} 33. Nf3 {[%clk 00:20:52]} {[%emt
00:00:26]} Qd6 {[%clk 00:11:33]} {[%emt 00:01:10]} 34. Rd4 {[%clk 00:19:26]}
{[%emt 00:01:57]} Qc5 {[%clk 00:11:44]} {[%emt 00:00:20]} 35. g4 {[%clk
00:17:45]} {[%emt 00:02:11]} Ng5 {[%clk 00:11:08]} {[%emt 00:01:05]} 36. Nxg5
{[%clk 00:17:11]} {[%emt 00:01:05]} Kxg5 {[%clk 00:11:02]} {[%emt 00:00:34]} 37.
Rgd8 {[%clk 00:16:53]} {[%emt 00:00:50]} Qc1+ {[%clk 00:10:27]} {[%emt
00:01:05]} 38. Kg2 {[%clk 00:17:02]} {[%emt 00:00:21]} fxg4 {[%clk 00:10:03]}
{[%emt 00:00:53]} 39. hxg4 {[%clk 00:17:12]} {[%emt 00:00:20]} Kh6 {[%clk
00:09:11]} {[%emt 00:01:17]} 40. R8d7 {[%clk 00:16:42]} {[%emt 00:01:06]} a5
{[%clk 00:08:51]} {[%emt 00:00:50]} 41. R4d5 {[%clk 00:15:33]} {[%emt
00:01:39]} Qf4 {[%clk 00:07:02]} {[%emt 00:02:19]} 42. f3 {[%clk 00:14:57]}
{[%emt 00:01:06]} Qc1 {[%clk 00:00:59]} {[%emt 00:06:27]} 1-0